bitfinex-derivatives/quotes_BNBF0:USTF0_20250211
["timestamp","ask_amount","ask_price","bid_price","bid_amount"]
[1739275000985,0.31077133,643.56,641.64,0.91940998]
[1739275001184,0.31077133,643.56,641.66,0.31169155]
[1739275001480,0.31077133,643.56,642.48,1.14529298]
[1739275001680,0.31077133,643.56,642.49,0.28564578]
[1739275002985,0.31077133,643.56,642.48,1.14529298]
[1739275003688,0.31077133,643.56,642.58,1.14529298]
[1739275006487,0.31077133,643.56,642.41,1.14529298]
[1739275009185,0.31077133,643.56,641.75,0.97618657]
[1739275009186,0.31077133,643.56,642.28,1.14529298]
[1739275009385,0.31077133,643.56,642.29,0.28575529]
[1739275010982,0.24949439,643.55,642.33,1.14529298]
[1739275011188,0.24949439,643.55,642.34,0.28575529]
[1739275011189,0.31078582,643.53,642.34,0.28575529]
[1739275011386,0.24949439,643.52,642.34,0.28575529]
[1739275011589,0.31080031,643.5,642.34,0.28575529]
[1739275012890,0.31080031,643.5,642.33,0.28575529]
[1739275013091,0.31080031,643.5,642.34,0.28575529]
[1739275013292,0.31080031,643.5,642.33,0.28575529]
[1739275013492,0.31080031,643.5,642.34,0.28575529]
[1739275013689,0.31080031,643.5,642.33,0.28575529]
[1739275015696,0.31080031,643.5,642.34,0.28575529]
[1739275015892,0.24949978,643.49,642.31,0.28575529]
[1739275016094,0.3108148,643.47,642.32,0.28575529]
[1739275016292,0.24949978,643.46,642.33,0.28575529]
[1739275016491,0.31082929,643.44,642.31,0.28575529]
[1739275016696,0.31082929,643.44,642.32,0.28575529]
[1739275016896,0.31082929,643.44,642.31,0.28575529]
[1739275017097,0.31082929,643.44,642.32,0.28575529]
[1739275017397,0.24950477,643.43,642.33,0.28575529]
[1739275017598,0.31084378,643.41,642.34,0.28575529]
[1739275017898,0.31084378,643.41,642.35,0.28575744]
[1739275018097,0.31084378,643.41,642.36,0.28575744]
[1739275018297,0.31084378,643.41,642.31,1.14529298]
[1739275018298,0.24950788,643.4,642.32,0.28575744]
[1739275018499,0.31085344,643.39,642.33,0.28575744]
[1739275018694,0.31085344,643.39,642.32,0.28575744]
[1739275018999,0.24950956,643.38,642.32,0.28575744]
[1739275019199,0.31085344,643.39,642.32,0.28575744]
[1739275019594,0.31085344,643.39,642.33,0.28575747]
[1739275019796,0.31085344,643.39,642.32,0.28575747]
[1739275020102,0.31085344,643.39,642.33,0.28575747]
[1739275020295,0.31085344,643.39,642.32,0.28575747]
[1739275020501,0.31085344,643.39,642.33,0.28575747]
[1739275020702,0.31085344,643.39,642.34,0.28577893]
[1739275021004,0.31085344,643.39,642.31,1.14529298]
[1739275023001,0.31085344,643.39,642.19,1.14529298]
[1739275024504,0.31085344,643.39,642.2,0.28580569]
[1739275025503,0.31085344,643.39,641.96,0.28580569]
[1739275025803,0.31085344,643.39,641.97,0.28580569]
[1739275026006,0.31085344,643.39,641.96,0.28580569]
[1739275026198,0.31085344,643.39,641.95,1.14529298]
[1739275026199,0.31085344,643.39,641.97,0.28580569]
[1739275026402,0.31085344,643.39,641.98,0.28580569]
[1739275026604,0.31085344,643.39,641.99,0.28580569]
[1739275026803,0.31085344,643.39,642.0,0.28580569]
[1739275027006,0.31085344,643.39,641.96,0.28580569]
[1739275027302,0.31085344,643.39,641.96,0.92099883]
[1739275027609,0.31085344,643.39,642.09,1.14529298]
[1739275027906,0.31085344,643.39,642.1,0.28580569]
[1739275029904,0.31085344,643.39,642.11,1.14529298]
[1739275030100,0.31085344,643.39,642.12,0.28580569]
[1739275032506,0.31085344,643.39,642.13,0.28580569]
[1739275032807,0.31085344,643.39,642.14,0.28580569]
[1739275033106,0.31085344,643.39,642.15,0.28580569]
[1739275033307,0.31085344,643.39,642.1,0.28580569]
[1739275033503,0.31085344,643.39,642.11,0.28580569]
[1739275033803,0.31085344,643.39,642.12,0.28580569]
[1739275034010,0.31085344,643.39,642.1,0.28580569]
[1739275034908,0.31085344,643.39,642.11,0.28572999]
[1739275035102,0.31085344,643.39,642.1,0.28572999]
[1739275035306,0.31085344,643.39,642.12,1.14529298]
[1739275035507,0.31085344,643.39,642.13,0.28572999]
[1739275036008,0.31085344,643.39,642.14,0.28569128]
[1739275036204,0.31085344,643.39,642.13,0.28569128]
[1739275036407,0.31085344,643.39,642.15,0.28569128]
[1739275036608,0.31085344,643.39,642.16,0.28569128]
[1739275036907,0.31085344,643.39,642.17,0.28569128]
[1739275037109,0.31085344,643.39,642.18,0.28569128]
[1739275037304,0.31085344,643.39,642.13,0.28569128]
[1739275037710,0.31085344,643.39,642.12,1.14529298]
[1739275037910,0.31085344,643.39,642.34,1.14529298]
[1739275038108,0.31085344,643.39,642.35,0.28570419]
[1739275040310,0.31085344,643.39,642.41,1.14529298]
[1739275040510,0.31085344,643.39,642.42,0.28570419]
[1739275042611,0.31085344,643.39,642.56,1.14529298]
[1739275042811,0.31085344,643.39,642.57,0.28570419]
[1739275043012,0.31085344,643.39,642.58,0.28556729]
[1739275043515,0.31085344,643.39,642.59,0.28556729]
[1739275043707,0.31085344,643.39,642.57,0.28556729]
[1739275043912,0.31085344,643.39,642.58,0.28556729]
[1739275044108,0.31085344,643.39,642.57,0.28556729]
[1739275044308,0.31085344,643.39,642.58,0.28556729]
[1739275044514,0.31085344,643.39,642.56,1.14529298]
[1739275044714,0.31085344,643.39,642.45,1.14529298]
[1739275045017,0.31085344,643.39,642.46,0.28559532]
[1739275048318,0.31085344,643.39,642.47,0.28556353]
[1739275048518,0.31085344,643.39,642.26,0.28556353]
[1739275048719,0.31085344,643.39,642.27,0.59695904]
[1739275048918,0.31085344,643.39,642.28,0.5969542]
[1739275049118,0.31085344,643.39,642.29,0.28556353]
[1739275049314,0.31085344,643.39,642.28,0.31139067]
[1739275049514,0.31085344,643.39,642.29,0.28560182]
[1739275053416,0.31085344,643.39,642.28,0.31139067]
[1739275053616,0.31085344,643.39,642.29,0.28558255]
[1739275057115,0.31085344,643.39,642.28,0.31139067]
[1739275057420,0.31085344,643.39,642.29,0.91935918]
[1739275057624,0.31085344,643.39,642.3,0.28555019]
[1739275057818,0.31085344,643.39,642.31,0.28555019]
[1739275058017,0.31085344,643.39,642.32,0.28555019]
[1739275058220,0.31085344,643.39,642.33,0.28555019]
[1739275058522,0.31085344,643.39,642.34,0.28555019]
[1739275058715,0.31085344,643.39,642.35,0.28555019]
[1739275058915,0.31085344,643.39,642.3,0.28555019]
[1739275059121,0.31085344,643.39,642.31,0.28555019]
[1739275059323,0.31085344,643.39,642.32,0.28555019]
[1739275059518,0.31085344,643.39,642.33,0.28555019]
[1739275059719,0.31085344,643.39,642.34,0.28555019]
[1739275059924,0.31085344,643.39,642.35,0.28555019]
[1739275060117,0.31085344,643.39,642.36,0.28555019]
[1739275060316,0.31085344,643.39,642.37,0.28555019]
[1739275060521,0.31085344,643.39,642.52,1.14529298]
[1739275060716,0.31085344,643.39,642.53,0.91934597]
[1739275062422,0.31085344,643.39,642.52,1.14529298]
[1739275062618,0.31085344,643.39,642.53,0.91938963]
[1739275063021,0.31085344,643.39,642.52,1.14529298]
[1739275063222,0.31085344,643.39,642.53,0.91928333]
[1739275063824,0.31085344,643.39,642.59,1.14529298]
[1739275064023,0.31085344,643.39,642.6,0.91928333]
[1739275064523,0.31085344,643.39,642.61,0.91926277]
[1739275064718,0.31085344,643.39,642.62,0.91926277]
[1739275064922,0.31085344,643.39,642.6,0.91926277]
[1739275065123,0.31085344,643.39,642.61,0.91926277]
[1739275065317,0.31085344,643.39,642.6,0.91926277]
[1739275066122,0.31085344,643.39,642.59,1.14529298]
[1739275066319,0.31085344,643.39,642.78,1.14529298]
[1739275066519,0.31085344,643.39,642.79,0.28555195]
[1739275068524,0.31085344,643.39,642.78,0.28555195]
[1739275068724,0.31085344,643.39,642.79,0.28555195]
[1739275069025,0.31085344,643.39,642.8,0.28555195]
[1739275069325,0.31085344,643.39,642.81,0.28555195]
[1739275069625,0.31085344,643.39,642.82,0.28555195]
[1739275069824,0.31085344,643.39,642.83,0.285542]
[1739275070024,0.31085344,643.39,642.78,0.285542]
[1739275070224,0.31085344,643.39,642.79,0.285542]
[1739275070424,0.31085344,643.39,642.78,0.285542]
[1739275071023,0.31085344,643.39,642.79,1.14529298]
[1739275071225,0.31085344,643.39,642.8,0.285542]
[1739275071623,0.31085344,643.39,642.79,1.14529298]
[1739275071826,0.31085344,643.39,642.8,0.28550679]
[1739275074523,0.31085344,643.39,642.84,1.14529298]
[1739275074724,4.60321298,644.97,642.85,0.28550679]
[1739275074924,0.24926101,644.96,642.85,0.28550679]
[1739275075120,0.24926101,644.95,642.85,0.28550679]
[1739275075326,0.24926101,644.94,642.85,0.28550679]
[1739275075528,0.31015445,644.84,642.85,0.28550679]
[1739275075727,0.24926101,644.83,642.85,0.28550679]
[1739275076026,0.31016888,644.81,642.85,0.28550679]
[1739275076327,0.24926101,644.8,642.85,0.28550679]
[1739275076527,0.31018331,644.78,642.85,0.28550679]
[1739275076729,0.24926101,644.77,642.88,1.14529298]
[1739275077030,0.31018331,644.78,642.88,1.14529298]
[1739275077031,0.31019775,644.75,642.89,0.28550679]
[1739275077227,0.24926101,644.74,642.89,0.28550679]
[1739275077527,0.31021218,644.72,642.89,0.28550679]
[1739275077724,0.31021218,644.72,642.88,1.14529298]
[1739275078027,0.24926858,644.71,642.89,0.28551652]
[1739275078229,0.31022662,644.69,642.89,0.28551652]
[1739275078426,0.24926858,644.68,642.89,0.28551652]
[1739275078623,0.31024105,644.66,642.89,0.28551652]
[1739275078825,0.24926858,644.65,642.89,0.28551652]
[1739275079124,0.31025549,644.63,642.89,0.28551652]
[1739275079329,0.24926858,644.62,642.89,0.28551652]
[1739275079525,0.31026993,644.6,642.89,0.28551652]
[1739275079729,0.24926858,644.59,642.96,1.14529298]
[1739275079924,0.31028437,644.57,642.97,0.28551652]
[1739275080123,0.24926858,644.56,642.97,0.28551652]
[1739275080325,0.31029881,644.54,642.97,0.28551652]
[1739275080526,0.24926858,644.53,642.97,0.28551652]
[1739275080726,0.31031326,644.51,642.97,0.28551652]
[1739275080927,0.24926858,644.5,642.97,0.28551652]
[1739275081123,0.3103277,644.48,642.97,0.28551652]
[1739275081427,0.24926858,644.47,642.97,0.28551652]
[1739275082025,0.24921411,644.46,642.98,0.28546092]
[1739275082324,0.24921411,644.45,642.99,0.28546092]
[1739275082529,0.24921411,644.47,643.01,1.14529298]
[1739275082824,0.24921411,644.46,643.02,0.28546092]
[1739275083026,0.24921411,644.47,643.02,0.28546092]
[1739275083227,0.24921411,644.46,642.29,0.91889008]
[1739275083423,0.24921411,644.47,642.3,0.28546092]
[1739275083623,0.24921411,644.47,642.32,0.31137127]
[1739275083825,0.31038068,644.37,642.33,0.91889008]
[1739275084027,0.24921411,644.36,642.35,0.31135673]
[1739275084226,0.24921411,644.36,642.36,0.91889008]
[1739275084529,0.24921411,644.36,642.37,0.28546092]
[1739275084729,0.24921411,644.36,642.38,0.28546092]
[1739275085028,0.24921411,644.36,642.39,0.28546092]
[1739275085227,0.24921411,644.36,642.9,1.1416463]
[1739275085427,0.24921411,644.36,642.91,0.28546092]
[1739275086228,0.31039513,644.34,642.91,0.28546092]
[1739275086429,0.24921411,644.33,642.91,0.28546092]
[1739275086624,0.31040958,644.31,642.91,0.28546092]
[1739275086824,0.24921411,644.3,642.36,0.91875874]
[1739275087024,0.31042403,644.28,642.38,0.31134219]
[1739275087225,0.24921411,644.27,642.39,0.91875874]
[1739275087430,0.24921411,644.27,642.4,0.28546092]
[1739275087623,0.24921411,644.27,642.41,0.28546092]
[1739275087827,0.24921411,644.27,642.42,0.28546092]
[1739275088030,0.24921411,644.27,642.95,1.14161713]
[1739275088325,0.24921411,644.27,642.96,0.28546092]
[1739275088632,0.31043849,644.25,642.96,0.28546092]
[1739275088926,0.24921411,644.24,642.96,0.28546092]
[1739275089131,0.31045295,644.22,642.96,0.28546092]
[1739275089533,0.24921411,644.21,642.96,0.28546092]
[1739275089732,0.3104674,644.19,642.96,0.28546092]
[1739275089932,0.24921411,644.18,642.96,0.28546092]
[1739275090232,0.31048186,644.16,642.96,0.28546092]
[1739275090529,0.24921411,644.15,642.96,0.28546092]
[1739275090827,0.3104915,644.14,642.98,1.14161713]
[1739275091030,0.3104915,644.14,642.99,0.28545704]
[1739275093131,0.3104915,644.14,642.95,0.28545704]
[1739275094935,0.3104915,644.14,642.94,1.14161713]
[1739275095138,0.3104915,644.14,642.95,0.2854819]
[1739275095438,0.3104915,644.14,642.96,0.2854819]
[1739275095631,0.3104915,644.14,642.83,0.2854819]
[1739275095836,0.3104915,644.14,642.82,1.14161713]
[1739275096037,0.3104915,644.14,642.83,0.28546711]
[1739275097738,0.3104915,644.14,642.86,1.14161713]
[1739275098038,0.3104915,644.14,642.87,0.28546711]
[1739275100342,0.3104915,644.14,642.95,1.14161713]
[1739275100537,0.3104915,644.14,642.96,0.28546711]
[1739275103347,0.3104915,644.14,643.0,1.14161713]
[1739275103740,0.2492285,644.13,643.01,0.28545647]
[1739275103941,0.31050596,644.11,643.01,0.28545647]
[1739275104146,0.2492285,644.1,643.01,0.28545647]
[1739275104348,0.31052043,644.08,643.01,0.28545647]
[1739275105646,0.31052043,644.08,643.0,1.14161713]
[1739275106349,0.31052043,644.08,643.01,0.28548392]
[1739275107053,0.31052043,644.08,642.92,1.14161713]
[1739275107253,0.31052043,644.08,642.93,0.28548089]
[1739275109156,0.31052043,644.08,642.92,1.14161713]
[1739275109350,0.24928633,644.07,642.92,1.14161713]
[1739275109551,0.31053489,644.05,642.92,1.14161713]
[1739275110656,0.31053489,644.05,642.93,0.28550043]
[1739275112054,0.31053489,644.05,642.79,0.28550043]
[1739275112258,0.31053489,644.05,642.8,0.28550043]
[1739275112458,0.31053489,644.05,642.78,1.14161713]
[1739275112658,0.31053489,644.05,642.79,0.28550314]
[1739275113258,0.2492562,644.04,642.79,0.28550314]
[1739275114761,0.2492562,644.04,642.91,1.14161713]
[1739275114962,0.2492562,644.04,642.92,0.28550314]
[1739275115260,0.31054936,644.02,642.92,0.28550314]
[1739275115461,0.2492562,644.01,642.92,0.28550314]
[1739275116562,0.31056382,643.99,642.92,0.28550314]
[1739275116761,0.2492562,643.98,642.92,0.28550314]
[1739275116961,0.31057829,643.96,642.92,0.28550314]
[1739275117162,0.2492562,643.95,642.92,0.28550314]
[1739275117463,0.31059276,643.93,642.92,0.28550314]
[1739275117662,0.2492562,643.92,642.92,0.28550314]
[1739275117862,0.31059276,643.93,642.92,0.28550314]
[1739275118063,0.31059276,643.93,642.86,0.28550314]
[1739275118259,0.31059276,643.93,642.87,0.28550314]
[1739275118462,0.24930032,643.92,642.86,0.28550314]
[1739275118660,0.31060723,643.9,642.87,0.28550314]
[1739275118861,0.31060723,643.9,642.88,0.28550314]
[1739275119058,0.31060723,643.9,642.89,0.28550314]
[1739275119261,0.31060723,643.9,642.86,0.28550314]
[1739275120558,0.31060723,643.9,642.82,0.28550314]
[1739275120757,0.31060723,643.9,642.83,0.28550314]
[1739275120961,0.31060723,643.9,642.82,0.28550314]
[1739275121162,0.31060723,643.9,642.83,0.28550314]
[1739275121364,0.31060723,643.9,642.82,0.28550314]
[1739275121662,0.31060723,643.9,642.83,0.28550314]
[1739275121859,0.31060723,643.9,642.84,0.28550314]
[1739275122166,0.31060723,643.9,642.85,0.28550314]
[1739275122463,0.31060723,643.9,642.86,0.28550314]
[1739275122660,0.31060723,643.9,642.82,0.28550314]
[1739275122864,0.31060723,643.9,642.8,0.28555412]
[1739275123262,0.24935948,643.89,642.79,1.14161713]
[1739275123462,0.3106217,643.87,642.79,1.14161713]
[1739275123863,0.3106217,643.87,642.8,0.28559208]
[1739275125065,0.3106217,643.87,642.6,0.28559208]
[1739275125265,0.3106217,643.87,642.59,1.14161713]
[1739275125461,0.3106217,643.87,642.6,0.2855916]
[1739275126560,0.3106217,643.87,642.59,1.14161713]
[1739275126761,0.3106217,643.87,642.61,0.28558356]
[1739275127061,0.3106217,643.87,642.62,0.28558356]
[1739275127466,0.3106217,643.87,642.59,1.14161713]
[1739275127467,0.3106217,643.87,642.63,0.28558418]
[1739275127769,0.3106217,643.87,642.64,0.28558418]
[1739275127969,0.3106217,643.87,642.59,0.28558418]
[1739275128469,0.24935056,643.86,642.59,0.28558418]
[1739275128669,0.31063618,643.84,642.59,0.28558418]
[1739275130369,0.31063618,643.84,642.58,1.14161713]
[1739275130565,0.31063618,643.84,642.59,0.28559563]
[1739275130968,0.31063618,643.84,642.55,0.28559563]
[1739275131171,0.31063618,643.84,642.56,0.28559563]
[1739275131370,0.31063618,643.84,642.54,1.14161713]
[1739275133471,0.31063618,643.84,642.18,1.14161713]
[1739275133673,0.31063618,643.84,642.19,0.59703606]
[1739275133970,0.31063618,643.84,642.2,0.28560175]
[1739275135870,0.31063618,643.84,642.21,0.31142461]
[1739275136073,0.31063618,643.84,642.28,1.14161713]
[1739275136370,0.31063618,643.84,642.29,0.59698757]
[1739275136575,0.31063618,643.84,642.3,0.31138097]
[1739275136876,0.31063618,643.84,642.31,0.91994914]
[1739275137076,0.31063618,643.84,642.31,1.23132526]
[1739275137276,0.31063618,643.84,642.32,0.91994914]
[1739275138577,0.31063618,643.84,642.58,1.14161713]
[1739275138877,0.31063618,643.84,642.59,0.28560175]
[1739275140871,0.31063618,643.84,642.6,0.28557323]
[1739275141072,0.31063618,643.84,642.59,0.28557323]
[1739275141277,0.31063618,643.84,642.6,0.28557323]
[1739275141480,0.31063618,643.84,642.67,1.14161713]
[1739275141781,0.31063618,643.84,642.68,0.28557323]
[1739275143083,0.31063618,643.84,642.69,0.28556128]
[1739275143280,0.31063618,643.84,642.68,0.28556128]
[1739275143481,0.31063618,643.84,642.69,0.28556128]
[1739275143678,0.31063618,643.84,642.68,0.28556128]
[1739275143879,0.31063618,643.84,642.69,0.28556128]
[1739275144277,0.31063618,643.84,642.7,0.28556128]
[1739275144480,0.31063618,643.84,642.71,0.28556128]
[1739275144681,0.31063618,643.84,642.72,0.28556128]
[1739275144881,0.31063618,643.84,642.72,1.14161713]
[1739275145078,0.31063618,643.84,642.73,0.28556128]
[1739275147186,0.31063618,643.84,642.88,1.14161713]
[1739275147386,0.31063618,643.84,642.89,0.28556128]
[1739275149686,0.31063618,643.84,642.89,1.42717841]
[1739275149886,0.31063618,643.84,642.9,0.28556128]
[1739275151087,0.31063618,643.84,642.89,1.14161713]
[1739275151285,0.31063618,643.84,642.9,0.28553065]
[1739275152681,0.31063618,643.84,642.91,0.28553065]
[1739275152884,0.31063618,643.84,642.82,1.14161713]
[1739275153081,0.31063618,643.84,642.83,0.28551102]
[1739275154083,0.31063618,643.84,642.83,0.91961213]
[1739275154289,0.31063618,643.84,642.84,0.28551102]
[1739275154491,0.31063618,643.84,642.83,0.28551102]
[1739275154689,0.31063618,643.84,642.84,0.28549256]
[1739275154893,0.31063618,643.84,642.85,0.28549256]
[1739275155091,0.31063618,643.84,642.82,1.14161713]
[1739275155092,0.31063618,643.84,642.86,0.28549256]
[1739275155290,0.31063618,643.84,642.87,0.28549256]
[1739275155591,0.31063618,643.84,642.89,1.14161713]
[1739275155792,0.31063618,643.84,642.9,0.28549256]
[1739275158185,0.31063618,643.84,642.91,0.28545121]
[1739275158388,0.31063618,643.84,642.92,0.28545121]
[1739275158586,0.31063618,643.84,642.9,0.28545121]
[1739275158789,0.31063618,643.84,642.91,1.42706834]
[1739275158989,0.31063618,643.84,642.92,0.28545121]
[1739275159884,0.31063618,643.84,642.91,1.14161713]
[1739275160089,0.31063618,643.84,642.92,0.28546435]
[1739275161891,0.31063618,643.84,642.93,0.28546435]
[1739275162091,0.31063618,643.84,642.89,0.28546435]
[1739275162287,0.31063618,643.84,642.9,0.28546435]
[1739275162493,0.31063618,643.84,642.89,0.28546435]
[1739275162692,0.31063618,643.84,642.9,0.28546435]
[1739275162892,0.31063618,643.84,642.91,0.28546435]
[1739275163093,0.31063618,643.84,642.92,0.28546435]
[1739275163289,0.31063618,643.84,642.89,0.28546435]
[1739275163493,0.31063618,643.84,642.9,0.28546435]
[1739275163693,0.31063618,643.84,642.89,0.28546435]
[1739275163893,0.31063618,643.84,642.9,0.28546435]
[1739275164095,0.31063618,643.84,642.9,1.14161713]
[1739275164395,0.31063618,643.84,642.91,0.28546435]
[1739275165197,0.31063618,643.84,642.9,1.14161713]
[1739275165495,0.31063618,643.84,642.91,0.28544381]
[1739275166491,0.31063618,643.84,642.88,0.28544381]
[1739275166797,0.31063618,643.84,642.89,0.28544381]
[1739275166997,0.31063618,643.84,642.88,0.28544381]
[1739275167204,0.31063618,643.84,642.89,0.28544381]
[1739275167497,0.31063618,643.84,642.9,0.28544381]
[1739275167797,0.31063618,643.84,642.91,0.28544381]
[1739275167997,0.31063618,643.84,642.88,0.28544381]
[1739275168299,0.31063618,643.84,642.89,0.28544381]
[1739275168894,0.31063618,643.84,642.9,0.28543367]
[1739275169098,0.31063618,643.84,642.89,0.28543367]
[1739275169296,0.31063618,643.84,642.9,0.28543367]
[1739275169596,0.31063618,643.84,642.91,0.28543367]
[1739275169797,0.31063618,643.84,642.91,1.14161713]
[1739275170098,0.31063618,643.84,642.92,0.28543367]
[1739275172294,0.31063618,643.84,642.94,1.14161713]
[1739275172497,0.31063618,643.84,642.95,0.28541946]
[1739275174103,0.31063618,643.84,642.96,1.14161713]
[1739275174302,0.31063618,643.84,642.97,0.28543303]
[1739275175894,0.31063618,643.84,642.98,0.28543562]
[1739275176101,0.31063618,643.84,642.97,0.28543562]
[1739275176299,0.31063618,643.84,642.98,0.28543562]
[1739275176500,0.31063618,643.84,642.99,0.28543562]
[1739275176701,0.31063618,643.84,643.0,0.28543562]
[1739275176902,0.31063618,643.84,642.98,1.14161713]
[1739275177102,0.31063618,643.84,642.99,0.28543562]
[1739275177602,0.31063618,643.84,642.98,1.14161713]
[1739275177603,0.31063618,643.84,643.0,0.28543424]
[1739275177804,0.31063618,643.84,643.01,0.28543406]
[1739275178097,0.31063618,643.84,643.02,0.28543406]
[1739275178302,0.31063618,643.84,642.99,0.28543406]
[1739275179401,0.31063618,643.84,642.98,1.14161713]
[1739275179601,0.31063618,643.84,642.99,0.28542695]
[1739275184302,0.31063618,643.84,643.02,1.14161713]
[1739275184505,0.31063618,643.84,643.03,0.28542695]
[1739275186210,0.31063618,643.84,643.04,1.14161713]
[1739275186407,0.31063618,643.84,643.05,0.28542695]
[1739275186803,0.31063618,643.84,643.06,0.28542542]
[1739275187006,0.31063618,643.84,643.05,0.28542542]
[1739275188509,0.31063618,643.84,643.06,0.28541301]
[1739275188808,0.31063618,643.84,643.1,1.14161713]
[1739275189008,0.31063618,643.84,643.11,0.28541301]
[1739275192213,0.31063618,643.84,643.18,1.14161713]
[1739275193711,0.31063618,643.84,643.19,0.28545407]
[1739275193905,0.31063618,643.84,643.18,1.14161713]
[1739275194609,0.31063618,643.84,637.45,2.80697316]
[1739275194610,0.31063618,643.84,643.22,1.14161713]
[1739275197311,0.31063618,643.84,643.17,1.14161713]
[1739275199605,0.31063618,643.84,643.0,1.14161713]
[1739275199905,0.31063618,643.84,642.94,1.14161713]
[1739275202305,0.31063618,643.84,642.85,1.14161713]
[1739275202508,0.31063618,643.84,642.86,0.28552417]
[1739275204008,0.31063618,643.84,642.85,1.14161713]
[1739275204212,0.31063618,643.84,642.86,0.28547342]
[1739275204712,0.31063618,643.84,642.89,1.14161713]
[1739275204911,0.31063618,643.84,642.9,0.28547342]
[1739275206613,0.31063618,643.84,643.02,1.14161713]
[1739275206808,0.31063618,643.84,643.03,0.28547342]
[1739275209816,0.31063618,643.84,642.99,0.28547342]
[1739275210009,0.31063618,643.84,643.0,0.28547342]
[1739275210214,0.31063618,643.84,642.99,0.28547342]
[1739275212619,0.31063618,643.84,643.01,1.14161713]
[1739275213016,0.31063618,643.84,643.02,0.28547342]
[1739275214517,0.31063618,643.84,643.01,1.14161713]
[1739275214714,0.31063618,643.84,643.02,0.28541565]
[1739275215319,0.31063618,643.84,643.03,0.28541633]
[1739275215516,0.31063618,643.84,643.02,0.28541633]
[1739275215718,0.31063618,643.84,643.06,1.14161713]
[1739275217918,0.31063618,643.84,643.07,0.28546504]
[1739275218623,0.31063618,643.84,643.08,0.28546504]
[1739275218923,0.31063618,643.84,643.09,0.28546504]
[1739275219123,0.31063618,643.84,642.88,0.28546504]
[1739275219324,0.31063618,643.84,642.89,0.28546504]
[1739275219526,0.31063618,643.84,642.88,0.28546504]
[1739275219725,0.31063618,643.84,642.89,0.28546504]
[1739275219927,0.31063618,643.84,642.88,0.91901499]
[1739275220227,0.31063618,643.84,643.03,1.14161713]
[1739275220422,0.31063618,643.84,643.04,0.28546504]
[1739275221829,0.31063618,643.84,643.09,1.14161713]
[1739275222029,0.31063618,643.84,643.1,0.28543212]
[1739275224030,0.31063618,643.84,643.05,0.28543212]
[1739275224228,0.31063618,643.84,643.04,1.14161713]
[1739275224229,0.31063618,643.84,643.06,0.28543212]
[1739275224430,0.31063618,643.84,643.07,0.28543212]
[1739275224630,0.31063618,643.84,643.05,0.28543212]
[1739275224830,0.31063618,643.84,643.06,0.28543212]
[1739275225135,0.31063618,643.84,643.07,0.28543212]
[1739275225436,0.31063618,643.84,643.04,1.14161713]
[1739275225637,0.31063618,643.84,643.05,0.28549738]
[1739275226137,0.31063618,643.84,643.01,1.14161713]
[1739275229637,0.31063618,643.84,642.89,0.28549728]
[1739275230840,0.31063618,643.84,642.88,1.14161713]
[1739275231041,0.31063618,643.84,642.89,0.28551785]
[1739275231643,0.31063618,643.84,642.97,1.14161713]
[1739275232840,0.31063618,643.84,642.98,0.28553772]
[1739275233444,0.31063618,643.84,642.97,1.14161713]
[1739275233745,0.31063618,643.84,642.98,0.28553795]
[1739275234046,0.31063618,643.84,642.82,1.14161713]
[1739275234247,0.31063618,643.84,642.83,0.28554127]
[1739275236747,0.31063618,643.84,642.82,1.14161713]
[1739275237149,0.31063618,643.84,642.79,1.14161713]
[1739275237346,0.24936861,643.83,642.79,1.14161713]
[1739275237540,0.31065065,643.81,642.79,1.14161713]
[1739275238848,0.24937646,643.8,642.79,1.14161713]
[1739275239051,0.31066513,643.78,642.79,1.14161713]
[1739275239648,0.2493851,643.77,642.79,1.14161713]
[1739275239850,0.31067961,643.75,642.79,1.14161713]
[1739275240650,0.31067961,643.75,642.6,1.14161713]
[1739275240651,0.31067961,643.75,642.49,1.14161713]
[1739275240843,0.31067961,643.75,642.5,0.2856287]
[1739275241450,0.24938505,643.74,642.5,0.2856287]
[1739275241751,0.31069409,643.72,642.5,0.2856287]
[1739275241950,0.31069409,643.72,642.49,1.14161713]
[1739275243245,0.31069409,643.72,642.19,1.14161713]
[1739275243648,0.31069409,643.72,642.32,0.28565594]
[1739275244445,0.31069409,643.72,642.2,0.28565594]
[1739275246343,0.31069409,643.72,642.04,0.28565594]
[1739275246751,0.31069409,643.72,642.05,0.31150221]
[1739275247052,0.31069409,643.72,642.06,0.92115989]
[1739275247250,0.31069409,643.72,642.07,0.59713899]
[1739275247450,0.31069409,643.72,642.08,0.92115989]
[1739275247651,0.31069409,643.72,642.09,0.28564648]
[1739275247946,0.31069409,643.72,642.14,1.14161713]
[1739275248252,0.31069409,643.72,642.15,0.92115989]
[1739275248451,0.31069409,643.72,642.16,0.28564648]
[1739275248645,0.31069409,643.72,642.17,0.28564648]
[1739275248846,0.31069409,643.72,642.18,0.28564648]
[1739275249046,0.31069409,643.72,642.15,0.63551341]
[1739275249250,0.31069409,643.72,642.14,1.14161713]
[1739275249251,0.31069409,643.72,642.16,0.9212363]
[1739275249450,0.24942836,643.71,642.15,0.9212363]
[1739275249648,0.31070857,643.69,642.15,0.9212363]
[1739275249855,0.24942836,643.68,642.28,1.14161713]
[1739275250157,0.31072305,643.66,642.29,0.28564783]
[1739275250353,0.2494436,643.65,642.29,0.28564783]
[1739275250554,0.31073753,643.63,642.29,0.28564783]